Cogmind - Beta 17 @@@ ROGUE MODE // 2026.07.01 @ 21:02:46 Player: alice_fexa Result: Destroyed by Chaos Wyrm with Ragnarok Missile Launcher Performance ------------- Evolutions (0) 0 Regions Visited (3) 600 Robots Destroyed (30) 150 Value Destroyed (792) 792 Prototype IDs (14) 280 Alien Tech Used (0) 0 Bonus (5515) 5515 TOTAL SCORE: 7337 Bonus ------- Follower Combat Kills 215 Prayed to X0-1V1 5000 Registered with UFD 300 Cogmind --------- Core Integrity 0/250 Matter 290/300 Energy 249/250 System Corruption 0% Temperature Cool (0) Movement Rolling (200) Ox8 Location -9/Scraptown Parts ------- > --- POWER (1) -------- Ion Engine > --- PROPULSION (2) --- Improved Treads Wheel > --- UTILITY (2) ------ Improved Heat Sink Huge Storage Unit > --- WEAPON (2) ------- CPS Tube Spear > --- INVENTORY (25) --- Ion Engine Light Treads Light Treads Light Treads Compact Wheel Cooling System Medium Matter Pod (100) Triangulator Seismic Detector Melee Analysis Suite Medium Reactive Plating X0-1V1's Piety Tracker Particle Gun Particle Gun Plasma Rifle Assault Rifle Assault Rifle Barrage Gun Light Cannon Grenade Launcher Grenade Launcher Subdweller Shrapnel Launcher Datajack Improved Datajack Makeshift Sword Peak State ------------ > --- POWER ------------ Ion Engine > --- PROPULSION ------- Improved Treads Wheel > --- UTILITY ---------- Improved Heat Sink Huge Storage Unit > --- WEAPON ----------- CPS Tube Spear > --- INVENTORY -------- Ion Engine Light Treads Light Treads Light Treads Compact Wheel Cooling System Medium Matter Pod Triangulator Seismic Detector Melee Analysis Suite Medium Reactive Plating X0-1V1's Piety Tracker Particle Gun Particle Gun Plasma Rifle Assault Rifle Assault Rifle Barrage Gun Light Cannon Grenade Launcher Grenade Launcher Subdweller Shrapnel Launcher Datajack Improved Datajack Makeshift Sword [Rating: 21] Favorites ----------- Power Ion Engine Engine Ion Engine Propulsion Light Treads Treads Light Treads Wheel Wheel Utility Huge Storage Unit Device Heat Sink Storage Huge Storage Unit Weapon Assault Rifle Energy Gun Medium Laser Energy Cannon Subdweller Beam Cannon Ballistic Gun Assault Rifle Ballistic Cannon Light Cannon Special Weapon CPS Tube Piercing Weapon Spear Build | -11 -10 -10 -9 ------- Run | Yrd Mat Sub Scr Slots Evolved . | . . . . Power . | . . . . Propulsion . | . . . . Utility . | . . . . Weapon . | . . . . Parts Attached 29 | 6 9 8 6 Power 4 | 1 2 1 . Engine 4 | 1 2 1 . Core . | . . . . Reactor . | . . . . Propulsion 7 | 2 1 1 3 Treads 3 | 1 . . 2 Leg . | . . . . Wheel 4 | 1 1 1 1 Hover . | . . . . Flight . | . . . . Utility 6 | 1 3 1 1 Device 4 | . 2 1 1 Storage 2 | 1 1 . . Processor . | . . . . Hackware . | . . . . Protection . | . . . . Artifact . | . . . . Weapon 12 | 2 3 5 2 Energy Gun 1 | 1 . . . Energy Cannon 2 | . . 2 . Ballistic Gun 5 | 1 3 1 . Ballistic Cannon 2 | . . 2 . Launcher . | . . . . Special Weapon 1 | . . . 1 Impact Weapon . | . . . . Slashing Weapon . | . . . . Piercing Weapon 1 | . . . 1 Special Melee Weapon . | . . . . Unidentified Prototypes . | . . . . Parts Lost 5 | . 2 3 . Power 1 | . . 1 . Propulsion 2 | . 1 1 . Utility . | . . . . Weapon 2 | . 1 1 . Highest Loss Streak 3 | . 1 3 . To Critical Strikes . | . . . . Average Backups 23 | 2 22 24 24 Power 1 | . 2 1 1 Propulsion 3 | 1 3 3 3 Utility 3 | . 3 5 4 Weapon 12 | . 12 13 13 Tool/Special . | . . . . Unused Backups 34 | . 6 1 27 Power 2 | . 1 . 1 Propulsion 4 | . 1 . 3 Utility 6 | . 1 . 5 Weapon 19 | . 2 1 16 Tool/Special 3 | . 1 . 2 Average Slot Usage (%) 95 | . 96 98 94 Engine 13 | . 14 13 14 Treads 13 | . 13 14 14 Wheel 13 | . 13 13 14 Device 12 | . 10 14 14 Storage 14 | . 14 14 14 Energy Cannon 2 | . . 3 4 Ballistic Gun 15 | . 27 12 . Ballistic Cannon 6 | . . 11 13 Piercing Weapon 1 | . . . 4 Peak Build Rating 21 | 6 11 12 21 Average Rating 11 | 4 8 11 14 On Entrance 7 | . 6 11 12 Avg Prop Armor Cover (%) 12 | 13 11 11 13 Naked Turns . | . . . . Heaviest Build 97 | 12 92 97 97 Greatest Support 20 | 20 10 16 16 Greatest Overweight (x) 9 | 1 9 9 9 Average Overweight (x) 6 | . 7 7 6 Largest Inventory Capacity 25 | 8 25 25 25 Average Capacity 24 | 7 23 25 25 Most Carried 25 | 5 25 25 25 Average Carried 23 | 3 22 24 24 Final Capacity 25 | 8 25 25 25 Final Carried 25 | 5 25 25 25 Class Distribution -------------------- 100% | Mutant Dominant Class ---------------- Mutant | -10/Materials Mutant | -10/Subcaves Mutant | -9/Scraptown Resources | -11 -10 -10 -9 ----------- Run | Yrd Mat Sub Scr Matter Collected 1198 | 257 672 209 60 Remotely . | . . . . Salvage Created 1095 | 113 863 119 . Parts 65 | 14 44 7 . Haulers Intercepted 2 | . 2 . . Recyclers Shooed 2 | 1 1 . . Parts Field Recycled . | . . . . Retrieved Matter . | . . . . Parts Self-Destructed 15 | . . 15 . Prevented . | . . . . Parts Restored . | . . . . Kills | -11 -10 -10 -9 ------- Run | Yrd Mat Sub Scr Combat Hostiles Destroyed 18 | . 14 4 . Guns 16 | . 14 2 . Cannons 2 | . . 2 . Classes Destroyed 7 | 2 4 1 . Tunneler 3 | 3 . . . Hauler 2 | . 2 . . Recycler 2 | 1 1 . . Operator 2 | . 2 . . Watcher 3 | . 3 . . Grunt 14 | . 14 . . Subdweller 4 | . . 4 . Best Kill Streak 4 | 4 3 2 . Combat Bots Only 3 | . 3 2 . Max Kills in Single Turn 1 | 1 1 1 . Gunslinging . | . . . . Exploded . | . . . . Melee . | . . . . Uniques/NPCs Destroyed . | . . . . Combat | -11 -10 -10 -9 -------- Run | Yrd Mat Sub Scr Hostile Shots Fired 89 | . 61 26 2 Missed 21 | . 13 8 . Hits 68 | . 48 18 2 Projectile 68 | . 48 18 2 Critical Strikes 2 | . 1 1 . Damage Taken 1240 | . 616 417 207 Core 277 | . 95 82 100 Absorbed by Shields . | . . . . Regen/Repaired (Parts) 146 | . 146 . . Core Remaining (%) 100 | 100 . . . Volleys Fired 101 | 6 76 18 1 Largest 2 | 2 2 2 1 Hottest 110 | 70 40 110 . Shots Fired 200 | 12 152 35 1 Gun 179 | 12 152 15 . Cannon 20 | . . 20 . Launcher . | . . . . Special 1 | . . . 1 Kinetic 189 | 6 152 31 . Thermal 10 | 6 . 4 . Explosive . | . . . . Electromagnetic . | . . . . Robot Hit Streak 9 | 2 8 9 6 Robot Miss Streak 7 | 2 7 1 . Penetration Max . | . . . . Secondary Targets 1 | . 1 . . Max Gunslinging Chain 1 | . 1 . . Shots Hit Robots 129 | 5 97 26 1 Core Hits 57 | 5 45 7 . Critical Kills . | . . . . Critical Parts Destroyed 2 | . 2 . . Critical Strikes 2 | . 2 . . Destroy 2 | . 2 . . Melee Attacks . | . . . . Impact . | . . . . Slashing . | . . . . Piercing . | . . . . Sneak Attacks . | . . . . Combat Hostiles . | . . . . Follow-up Attacks . | . . . . Damage Inflicted 1798 | 77 1217 504 . Guns 1525 | 77 1217 231 . Cannons 273 | . . 273 . Explosions . | . . . . Melee . | . . . . Ramming . | . . . . Kinetic 1704 | 39 1217 448 . Thermal 94 | 38 . 56 . Explosive . | . . . . Electromagnetic . | . . . . Impact . | . . . . Slashing . | . . . . Piercing . | . . . . Highest Corruption 2 | . 2 2 . Average Corruption 2 | . 2 2 . Corruption Purged . | . . . . Corruption Blocked . | . . . . Effects 7 | . . 7 . Message Errors 2 | . . 2 . Matter Fused 2 | . . 2 . Heat Flow Errors 1 | . . 1 . Energy Discharges 1 | . . 1 . Misfires 1 | . . 1 . Overload Shots . | . . . . Overflow Damage . | . . . . Projectiles . | . . . . Explosions . | . . . . Melee . | . . . . Knockbacks 2 | . . 2 . Impact . | . . . . Kinetic 2 | . . 2 . Secondary . | . . . . Self-Inflicted Damage . | . . . . Shots . | . . . . Rammed 1 | . 1 . . Targets Rammed 1 | . 1 . . Kicked . | . . . . Crushed . | . . . . Highest Temperature 229 | 27 20 229 . Average Temperature 43 | 11 5 117 . Received Heat Transfer 709 | . 342 349 18 Siege Activations . | . . . . Martial Activations . | . . . . Shielding Activations . | . . . . Robots Disrupted . | . . . . Combat Hostiles . | . . . . Robots Corrupted . | . . . . Combat Hostiles . | . . . . Parts Fried . | . . . . Impact Corruptions . | . . . . Robots Melted . | . . . . Combat Hostiles . | . . . . Parts Melted . | . . . . Heat Transferred 185 | 111 . 74 . Parts Sabotaged . | . . . . Parts Stolen . | . . . . Parts Stripped . | . . . . Power Chain Reactions . | . . . . Alert | -11 -10 -10 -9 ------- Run | Yrd Mat Sub Scr Maximum Alert Level . | . . . . Low Security (%) 100 | 100 100 . . Level 1 . | . . . . Level 2 . | . . . . Level 3 . | . . . . Level 4 . | . . . . Level 5 . | . . . . High Security . | . . . . Max Security . | . . . . Peak Influence 96 | 5 96 . . Initial . | . . . . Average 16 | 2 16 . . Influence Increases 478 | 20 458 . . Destroy 0b10 Robot/C 280 | . 280 . . Destroy 0b10 Robot/NC 60 | 20 40 . . Destroy Leader 80 | . 80 . . Successful Hack 24 | . 24 . . Destroy Structure 4 | . 4 . . Lose Combat Pursuer 30 | . 30 . . Influence Decreases 478 | 20 446 12 . Entered New Map 7 | . . 7 . Time Decay 461 | 20 436 5 . Lost Part 10 | . 10 . . Squads Dispatched 4 | . 4 . . Investigation 1 | . 1 . . Extermination . | . . . . Reinforcement 3 | . 3 . . Assault . | . . . . Garrison . | . . . . Intercept . | . . . . Searches Triggered . | . . . . Construction Impeded . | . . . . Haulers Reinforced . | . . . . Active Scanning Responses . | . . . . Cargo Convoy Interrupts . | . . . . Stealth | -11 -10 -10 -9 --------- Run | Yrd Mat Sub Scr Distress Signals . | . . . . Communications Jammed . | . . . . Distress Signals . | . . . . Times Spotted 35 | . 25 4 6 Peak Tracking Total 7 | . 3 2 7 Tactical Retreats 2 | . 2 . . Traps | -11 -10 -10 -9 ------- Run | Yrd Mat Sub Scr Traps Triggered 3 | . 3 . . Indirectly . | . . . . Trap Hack Attempts . | . . . . Triggered . | . . . . Disarmed . | . . . . Reprogrammed . | . . . . Reused . | . . . . Traps Extracted . | . . . . Installed . | . . . . Triggered . | . . . . Machines | -11 -10 -10 -9 ---------- Run | Yrd Mat Sub Scr Machines Disabled 4 | . . . 4 Max in Single Turn . | . . . . Machines Repaired . | . . . . Machines Dismantled . | . . . . Machines Sabotaged . | . . . . Overloaded Fab Kills . | . . . . Hacking | -11 -10 -10 -9 --------- Run | Yrd Mat Sub Scr Machines Accessed 11 | . 9 . 2 Terminals 6 | . 6 . . Fabricators . | . . . . Repair Stations 1 | . 1 . . Recycling Units 2 | . 2 . . Scanalyzers . | . . . . Garrison Access . | . . . . Total Hacks 33 | . 24 . 9 Successful 26 | . 17 . 9 Failed 7 | . 7 . . Catastrophic . | . . . . Database Lockouts . | . . . . Manual 17 | . 17 . . Terminals 17 | . 17 . . Fabricators . | . . . . Repair Stations 4 | . 4 . . Recycling Units 3 | . 3 . . Scanalyzers . | . . . . Garrison Access . | . . . . Terminal Hacks 11 | . 2 . 9 Record 8 | . . . 8 Prototype ID Bank 1 | . 1 . . Locate Traps 1 | . 1 . . Proto ID Catalog 1 | . . . 1 Fabricator Hacks . | . . . . Repair Station Hacks 4 | . 4 . . Scan Component 2 | . 2 . . Repair 2 | . 2 . . Recycling Unit Hacks 1 | . 1 . . Retrieve Components 1 | . 1 . . Scanalyzer . | . . . . Garrison Access Hacks . | . . . . Unauthorized Hacks 10 | . 10 . . Terminals 10 | . 10 . . Botnet 4 | . 4 . . Skim 6 | . 6 . . Fabricators . | . . . . Repair Stations . | . . . . Recycling Units . | . . . . Scanalyzers . | . . . . Garrison Access . | . . . . Data Cores Recovered . | . . . . Used . | . . . . Hacking Detections 8 | . 8 . . Full Trace Events . | . . . . Feedback Events . | . . . . Feedback Blocked . | . . . . Robot Schematics Acquired . | . . . . Robots Built . | . . . . Authchips . | . . . . Time . | . . . . Total Robot Build Rating . | . . . . Part Schematics Acquired . | . . . . Parts Built . | . . . . Authchips . | . . . . Time . | . . . . Total Part Build Rating . | . . . . Part Studies Acquired . | . . . . Parts Repaired 2 | . 2 . . Time 52 | . 52 . . Parts Recycled . | . . . . Recycled Matter . | . . . . Retrieved Matter . | . . . . Retrieved Components 10 | . 10 . . Parts Scanalyzed . | . . . . Part Schematics Acquired . | . . . . Parts Damaged . | . . . . Bothacking | -11 -10 -10 -9 ------------ Run | Yrd Mat Sub Scr Used RIF Installer . | . . . . Robots Hacked . | . . . . Non-combat . | . . . . Combat . | . . . . Robot Hacks Applied . | . . . . Relay Couplers Released . | . . . . Fabnet Peak Effective % . | . . . . Robots Rewired . | . . . . Allies Hacked . | . . . . Hacks Repelled . | . . . . Allies | -11 -10 -10 -9 -------- Run | Yrd Mat Sub Scr Total Allies 1 | . . . 1 Largest Group 1 | . . . 1 Highest-Rated Group 446 | . . . 446 Highest-Rated Ally 446 | . . . 446 Total Orders . | . . . . Ally Attacks 8 | . . . 8 Total Damage 1274 | . . . 1274 Kills 7 | . . . 7 Allies Corrupted . | . . . . Allies Melted . | . . . . X0-1V1 Amusement Gains 12 | . 12 . . Bad Acts 1 | . 1 . . Intel | -11 -10 -10 -9 ------- Run | Yrd Mat Sub Scr Active Infowar (turns) 94 | . . 94 . Seismic 94 | . . 94 . Robot Analysis Total . | . . . . Derelict Logs Recovered 3 | . . . 3 Drone Launches . | . . . . Drone Recoveries . | . . . . Exploration | -11 -10 -10 -9 ------------- Run | Yrd Mat Sub Scr Turns Passed 4410 | 82 2198 497 1633 Spaces Moved 1885 | 51 814 176 844 Core 3 | 3 . . . Treads 3 | 3 . . . Legs . | . . . . Wheels 1879 | 45 814 176 844 Hover . | . . . . Flight . | . . . . Fastest Speed 50 | 50 95 190 175 Average Speed 188 | 92 188 206 190 Slowest Speed 215 | 160 215 215 215 Overloaded Moves . | . . . . Propulsion Burnouts . | . . . . Robots Hopped . | . . . . Potential Cave-ins . | . . . . Cave-ins Triggered . | . . . . Exploration Rate (%) 48 | 3 97 13 80 Regions Visited 3 Branch Regions 2 Pre-discovered Areas 1 | . . . 1 Known Exits Taken . | . . . . Unknown Exits Taken 3 | 1 1 1 . Scrap Searched 9 | . . 6 3 Spaces Dug . | . . . . Terrain Destroyed . | . . . . Melee . | . . . . Projectile . | . . . . AOE . | . . . . Terrain Rammed . | . . . . Walls Destroyed . | . . . . Machines Disabled . | . . . . Actions | -11 -10 -10 -9 --------- Run | Yrd Mat Sub Scr Total 2557 | 70 1333 278 876 Wait 452 | 3 385 62 2 Move 1882 | 50 813 175 844 Hop . | . . . . Pick Up 51 | 5 31 6 9 Fast Attach 11 | 6 5 . . Attach 6 | . 2 3 1 Detach 2 | . 2 . . Swap 18 | . 4 8 6 Drop 33 | . 14 6 13 Fire 101 | 6 76 18 1 Melee . | . . . . Ram . | . . . . Kick . | . . . . Crush 1 | . 1 . . Escape Stasis . | . . . . Rewire . | . . . . Trap . | . . . . Miscellaneous . | . . . . Route ------- -11/Scrapyard -10/Materials (discovered 5 exits: [*Mat x3] / [*Min] / [*Sub]) -10/Subcaves (discovered 2 exits: [*Mat] / *Scr) -9/Scraptown (discovered 1 exit: [*Fac]) History --------- Turn | Location | Event 6 | -11/Scrapyard | Discovered new exit (range 15) 83 | -11/Scrapyard | Entered Materials 306 | -10/Materials | Build established: Mutant 423 | -10/Materials | Discovered new exit (range 10) 1038 | -10/Materials | Discovered new exit (range 13) 1074 | -10/Materials | Discovered new exit (range 8) 1384 | -10/Materials | Repaired Lgt. Cannon 1411 | -10/Materials | Repaired Lgt. Treads 1538 | -10/Materials | Discovered new exit (range 16) 1703 | -10/Materials | Discovered new exit (range 8) 1742 | -10/Materials | Learned 4 Subcaves zone layouts 1921 | -10/Materials | Learned Storage security intel 1968 | -10/Materials | Learned Storage security intel 2061 | -10/Materials | Learned location of 3 exits from Materials 2273 | -10/Materials | Prayed at D.C.S.S. Altar Unit 2281 | -10/Materials | Entered Subcaves 2282 | -10/Subcaves | Approached by a straggling Scientist 2511 | -10/Subcaves | Discovered new exit (range 12) 2557 | -10/Subcaves | Scientist uncovered a shortcut to Scraptown 2631 | -10/Subcaves | Core integrity fell below 50% 2676 | -10/Subcaves | Lost 3 parts (1p1n1w) 2687 | -10/Subcaves | Disturbed a concealed Subdweller 2778 | -10/Subcaves | Entered Scraptown 2778 | -9/Scraptown | System corruption cleaned by C-Scrubber 3246 | -9/Scraptown | Discovered new exit (range 11) 3290 | -9/Scraptown | Scanned Subdweller tech in exchange for log data 3294 | -9/Scraptown | Learned location of Extension (-5) 3296 | -9/Scraptown | Learned Factory trap positions 3298 | -9/Scraptown | Learned Research terminal intel 3335 | -9/Scraptown | Visited Fellowship of the Rings 3370 | -9/Scraptown | Visited The Evicted 3389 | -9/Scraptown | Visited IN-MT5's Study 3424 | -9/Scraptown | Visited CPS Storage 3433 | -9/Scraptown | Heard Great Nut preacher, LISTEN AND RECITE! 3578 | -9/Scraptown | Visited Cyclists 3615 | -9/Scraptown | Visited Cave Peace 3702 | -9/Scraptown | Visited UFD Registry 3702 | -9/Scraptown | Registered with UFD as "Datasys" 3760 | -9/Scraptown | Visited Modified Component R&D 3791 | -9/Scraptown | Visited Junk Repository 3856 | -9/Scraptown | Visited Derelict Rescue Squad 3883 | -9/Scraptown | Visited DA-N13 Charitable Foundation 3905 | -9/Scraptown | Found DCF Scrap (28 items) 3964 | -9/Scraptown | Visited Junk Repository 4030 | -9/Scraptown | Visited Scrap Suit Storage 4060 | -9/Scraptown | Visited Science Guys 4215 | -9/Scraptown | Visited LU-1G1's Boring Crew 4245 | -9/Scraptown | Visited Chapter 10 4275 | -9/Scraptown | Visited Infowarlord's Domain 4384 | -9/Scraptown | Visited Shadow of the Wyrm 4397 | -9/Scraptown | X0-1V1 brought Wyrm Statue to life 4397 | -9/Scraptown | Attacked by Scraptown defenders 4405 | -9/Scraptown | Attached CPS modules to Chaos Wyrm 4411 | -9/Scraptown | Destroyed by Chaos Wyrm with Ragnarok Missile Launcher Last Messages --------------- Sorry I couldn't tell you earlier, trying to keep folks honest in a survey isn't always easy. 04384_ LOCAL NARROWCAST: Shadow of the Wyrm. An epic journey awaits! 04395_ SC-SYR(g) is intensely focused on the statue. 04397_ A towering statue of a majestic wyrm. 04397_ X0-1V1 animates Wyrm Statue. 04397_ ANNOUNCEMENT: Intruder alert! Defend Scraptown! 04398_ 2E-JMZ(x): "This is not Wyrm! Who would do such a thing? And how?" 04398_ MQ-YZE(g) suffers critical hit (Meltdown). 04399_ 47-NE6(g) destroyed. 04399_ 5Z-Q15(g) destroyed. 04399_ Machine disabled. 04399_ SC-SYR(g) destroyed. 04399_ Machine disabled. 04399_ BN-MYD(c) destroyed. 04399_ Machine disabled. 04404_ QU-F7R(l) destroyed. 04405_ CPS modules attach to Chaos Wyrm. 04411_ 2E-JMZ(x) destroyed. 04411_ X0-1V1 chuckles heartily! Map ----- +----------------------------------------------------+ | ? ?????#" "" " ######??????????????"""????????## | | ? ?????#" " ##########??????????" ????????#" | | ? ?????#"""""" ## #??????????" ????????#" | | ? ?????####### ## "" "" #?????????? ????????#" | | ? ???????????# ## ""X"" #??????????#"#????????#" | | ???########### ## """"" #????####### ####?????#X | | ## """ #????#" "#?????## | | ## " #????#X "#?????#" | | ???########### ## #????#" "#?????#" | | ????????????# ## #????# #?????## | | ?#########?### ### ################## ####?????? | | ?# ?# #?????? | | ?# # #?????? | | ?# # #?????? | | ?# #?????? | | ?# # #?????? | | ?# # ################# #???### | | ?# ?# #???????????????# #???#"" | | ?# ?# #???????????????# #???#"" | | ?# ??# #???????????????# #???#"" | | ?########??# #???????????????# #???#"" | | ???????????# #??#?##?????????# #???#"" | | ???????????# #### # #????????# ###?#"" | | ???????????# # ##??????# ""#"#"" | | ???????????#r DD ##?????# """"#"" | | ???######### # DD @ #?????# ""##### | | ?""""""""""# % #????# ###???? | | ?"" ""#r * [ #????# ####### | | ??" " # % ! #????# | | ?? "" #z # #????# | | ?"" "" " #z ## = #????# | | #" " "" " # ## % ##????# | | #""" # #### ######## | | #" " # j | | #""" " " | | #""""""""""# | | ?########### | | ?????####### | | ????## #""" | | ????# #??? | | #???## #??? | | ###### ############# ########## ####??? | | ????# #???# ???????# #?????? | | """### ?????#" """#???# ||| #?????# #?????? | | ? ???# ??????#" " #???#"""" #?????# #?????? | | ?????#???????#"" " #???# | | #?????# #?????? | | ?????????????#""" " #???#"""" #?????# #?????? | | ?????????????#"" " #???# || #?????# #?????? | | ?????????????#" "###???#"""" #?????# #?????? | | ??????????????" " "?????# ||| #?????# #?????? | +----------------------------------------------------+ Best States ------------- Heat Dissipation 39 Energy Generation 10 Energy Capacity 250 Matter Stores 300 Matter Capacity 300 Sight Range 16 Terrain Scan Density 10 Evasion (%) 44 Recoil Reduction 1 Item Schematics ----------------- None Robot Schematics ------------------ None Fabricated ------------ Nothing Repaired ---------- Lgt. Cannon | 26% | -10/Materials Lgt. Treads | 58% | -10/Materials Studied --------- None Alien Tech Used ----------------- None Achievements -------------- None Challenges ------------ None Game ------ Seed PortableLayeredProcessor Manual? 0 Play Time 00:14:45 Cumulative 1677.0 hours Start 2026.07.01 @ 20:48:55 End 2026.07.01 @ 21:02:46 Sessions 1 Manual Loads 0 Difficulty Rogue Special Mode None Game No. 1191 Rogue 1151 Adventurer 40 Explorer 0 Win Type - Total 220 Types 104/11/74/2/2/4/16/2/1/4 Lore% 97 Gallery% 96 Achievement% 88 Wizard Run 0 Options --------- Layout 0 ASCII 0 Keyboard 0 Movement Numpad Keybinds 0 Fullscreen 0 Font 20/Terminus Map View 76x50 Zoom Use 0% Tactical HUD 1 Map Filters NONE Filters NONE Steam 1 RUN: 8df30e03-ef7b-42b4-a78a-50b2a738597e